fUST/lending_fUST_20240904
["ID","MTS","AMOUNT","RATE_DAILY","PERIOD"]
[337049483,1725379832654,-163.381058,0.00022362,2]
[337049485,1725379832665,-216.782186,0.00022664,2]
[337049487,1725379832675,-205.211937,0.00022728,2]
[337049489,1725379832686,-250.0,0.00023251,2]
[337049492,1725379832696,-250.0,0.00023314,2]
[337049494,1725379832707,-250.0,0.00023378,2]
[337049496,1725379832716,-205.83826408,0.00023442,2]
[337049498,1725379832729,-44.16173592,0.00023442,2]
[337049499,1725379832739,-250.0,0.00023506,2]
[337049501,1725379832749,-3000.0,0.00023531,2]
[337049503,1725379832759,-250.0,0.00023569,2]
[337049505,1725379832769,-250.0,0.00023633,2]
[337049507,1725379832782,-250.0,0.00023697,2]
[337049509,1725379832792,-250.0,0.00023761,2]
[337049511,1725379832801,-250.0,0.00023824,2]
[337049513,1725379832811,-250.0,0.00023888,2]
[337049515,1725379832821,-251.0,0.00023907,2]
[337049517,1725379832831,-300.0,0.0002392,2]
[337049520,1725379832840,-300.0,0.0002392,2]
[337049522,1725379832854,-612.28085045,0.00023921,2]
[337049524,1725379832866,-938.22642531,0.00023921,2]
[337049744,1725379838785,-420.30828837,0.00023921,2]
[337049745,1725379838798,-22929.18443587,0.00023921,2]
[337049746,1725379838807,-250.0,0.00023952,2]
[337049747,1725379838817,-250.0,0.00024016,2]
[337049748,1725379838827,-250.0,0.00024079,2]
[337049749,1725379838836,-250.0,0.00024143,2]
[337049750,1725379838845,-250.0,0.00024207,2]
[337049751,1725379838854,-250.0,0.00024271,2]
[337049752,1725379838864,-250.0,0.00024334,2]
[337049753,1725379838873,-250.0,0.00024398,2]
[337049754,1725379838884,-250.0,0.00024462,2]
[337049755,1725379838894,-420.0,0.00025942,2]
[337049756,1725379838904,-420.0,0.00026312,2]
[337049757,1725379838971,-221.1,0.00026356,2]
[337049758,1725379838981,-3000.0,0.000264,2]
[337049759,1725379838991,-5474.81750904,0.00026821,2]
[337049760,1725379839000,-5474.81750904,0.00026887,2]
[337049761,1725379839010,-229.0,0.00027,2]
[337049762,1725379839019,-159.8180718,0.0002705,2]
[337049763,1725379839030,-200.11197143,0.0002705,2]
[337049764,1725379839039,-168.16605167,0.0002705,2]
[337049765,1725379839050,-500.54207518,0.00027057,2]
[337049766,1725379839061,-5474.81750904,0.00027161,2]
[337049767,1725379839070,-150.0,0.00027434,2]
[337049768,1725379839080,-221.1,0.00027459,3]
[337049769,1725379839090,-5474.81750904,0.0002762,2]
[337049770,1725379839099,-229.0,0.00027671,2]
[337049771,1725379839110,-5474.81750904,0.00027761,2]
[337049772,1725379839120,-150.0,0.00027877,2]
[337049773,1725379839131,-5474.81750904,0.00028054,2]
[337049774,1725379839140,-161.07763022,0.00028056,5]
[337049775,1725379839150,-374.0,0.00028135,2]
[337049776,1725379839159,-150.0,0.00028181,2]
[337049777,1725379839169,-150.0,0.00028353,2]
[337049778,1725379839178,-5474.81750904,0.00028411,2]
[337049779,1725379839187,-221.1,0.00028562,4]
[337049780,1725379839196,-150.0,0.00028615,2]
[337049781,1725379839207,-5474.81750909,0.00028623,2]
[337049782,1725379839217,-229.0,0.00028767,2]
[337049783,1725379839227,-240.75,0.00028777,2]
[337049784,1725379839238,-303.02884887,0.00028826,14]
[337049785,1725379839248,-302.24446742,0.00028855,14]
[337049786,1725379839259,-4099.31,0.00028916,3]
[337049787,1725379839271,-1000.0,0.00028938,2]
[337049788,1725379839281,-587.0,0.00028943,2]
[337049789,1725379839291,-7441.44,0.00028956,3]
[337049790,1725379839302,-8929.73,0.00028966,3]
[337049791,1725379839314,-500.0,0.00028976,2]
[337049792,1725379839325,-500.0,0.00028976,2]
[337049793,1725379839336,-500.0,0.00028976,2]
[337049794,1725379839347,-348.88354634,0.00028976,2]
[337049795,1725379839360,-500.0,0.00028976,2]
[337049796,1725379839369,-477.50340356,0.00028976,2]
[337049797,1725379839379,-500.0,0.00028976,2]
[337049798,1725379839388,-500.0,0.00028976,2]
[337049799,1725379839399,-500.0,0.00028976,2]
[337049800,1725379839408,-500.0,0.00028976,2]
[337049801,1725379839418,-301.07628605,0.00028976,2]
[337049802,1725379839427,-500.0,0.00028976,2]
[337049803,1725379839436,-500.0,0.00028976,2]
[337049804,1725379839446,-500.0,0.00028976,2]
[337049805,1725379839455,-500.0,0.00028976,2]
[337049806,1725379839465,-500.0,0.00028976,2]
[337049807,1725379839474,-500.0,0.00028976,2]
[337049808,1725379839484,-600.0,0.00028976,2]
[337049809,1725379839493,-500.0,0.00028976,2]
[337049810,1725379839502,-500.0,0.00028976,2]
[337049811,1725379839511,-500.0,0.00028976,2]
[337049812,1725379839520,-500.0,0.00028976,2]
[337049813,1725379839531,-87798.44239293,0.00028977,3]
[337049814,1725379839696,-3850.17701767,0.00028977,3]
[337049815,1725379839715,-432.85647337,0.00028977,3]
[337049816,1725379839728,-13777.03252185,0.00028977,3]
[337049817,1725379839739,-928.73888676,0.00028977,3]
[337049859,1725379840918,-463.53607522,0.00028977,3]
[337049861,1725379840930,-49139.40936763,0.00028977,3]
[337049957,1725379843708,-6201.2,0.00028967,3]
[337049958,1725379843725,-18805.34978,0.00028977,3]
[337050032,1725379846707,-153123.7701354,0.00028977,3]
[337050033,1725379846762,-6647.05755217,0.00028977,3]
[337050034,1725379846772,-300.02,0.00028999,2]
[337050035,1725379846782,-3647.91658455,0.00028999,2]
[337050036,1725379846792,-1000.0,0.00029,29]
[337050037,1725379846801,-3378.77603525,0.00029048,15]
[337050038,1725379846813,-783.45870917,0.00029048,15]
[337050077,1725380921574,12604.11315879,0.0002,2]
[337050232,1725381032670,-243.2874971,0.00023893,2]
[337050234,1725381032683,-176.18913,0.00024193,2]
[337050236,1725381032693,-2491.8733729,0.00024441,2]
[337050239,1725381032710,-508.1266271,0.00024441,2]
[337050241,1725381032720,-216.782186,0.00024491,2]
[337050243,1725381032731,-300.0,0.00024989,2]
[337050245,1725381032741,-300.0,0.00024989,2]
[337050247,1725381032750,-8579.42,0.0002499,3]
[337050249,1725381032761,-271188.94226388,0.00025,2]
[337050251,1725381032771,-68735.99374519,0.00025,2]
[337050253,1725381032781,-164.11685863,0.00025,2]
[337050255,1725381032791,-156.76711102,0.00025,2]
[337050257,1725381032800,-19377.84928926,0.00025,2]
[337050259,1725381032810,-108388.01357692,0.0002509,2]
[337050261,1725381032820,-440.66,0.000251,14]
[337050263,1725381032830,-250.0,0.00025102,2]
[337050265,1725381032840,-250.0,0.00025171,2]
[337050267,1725381032851,-190.29,0.000252,14]
[337050269,1725381032860,-250.0,0.0002524,2]
[337050272,1725381032870,-250.0,0.00025309,2]
[337050274,1725381032880,-250.0,0.00025378,2]
[337050276,1725381032889,-250.0,0.00025447,2]
[337050278,1725381032900,-250.0,0.00025516,2]
[337050280,1725381032910,-180.971732,0.00025524,2]
[337050282,1725381032920,-250.0,0.00025584,2]
[337050284,1725381032930,-250.0,0.00025653,2]
[337050286,1725381032940,-24900.0,0.00025661,2]
[337050288,1725381032950,-36082.93306299,0.000257,15]
[337050290,1725381032960,-467659.27,0.000257,14]
[337050292,1725381032969,-6975.05480755,0.00025721,2]
[337050294,1725381032979,-250.0,0.00025722,2]
[337050296,1725381032989,-250.0,0.00025791,2]
[337050298,1725381032998,-250.0,0.0002586,2]
[337050300,1725381033008,-250.0,0.00025929,2]
[337050302,1725381033018,-250.0,0.00025997,2]
[337050304,1725381033027,-250.0,0.00026066,2]
[337050306,1725381033037,-250.0,0.00026135,2]
[337050308,1725381033048,-250.0,0.00026204,2]
[337050310,1725381033058,-250.0,0.00026273,2]
[337050312,1725381033068,-250.0,0.00026342,2]
[337050314,1725381033078,-197.0,0.00026367,2]
[337050316,1725381033088,-3000.0,0.000264,2]
[337050318,1725381033098,-3000.0,0.0002641,2]
[337050320,1725381033108,-250.0,0.00026411,2]
[337050322,1725381033118,-3000.0,0.0002642,2]
[337050324,1725381033129,-3000.0,0.0002643,2]
[337050326,1725381033139,-3000.0,0.0002644,2]
[337050328,1725381033151,-3000.0,0.0002645,2]
[337050330,1725381033167,-1260.41327242,0.00026458,2]
[337050332,1725381033177,-3000.0,0.0002646,2]
[337050334,1725381033187,-3000.0,0.0002647,2]
[337050336,1725381033197,-3000.0,0.0002648,2]
[337050338,1725381033207,-3000.0,0.0002649,2]
[337050340,1725381033217,-3000.0,0.000265,2]
[337050342,1725381033227,-3000.0,0.0002651,2]
[337050344,1725381033237,-500.0,0.00026518,2]
[337050346,1725381033246,-500.0,0.00026518,2]
[337050348,1725381033257,-500.0,0.00026518,2]
[337050350,1725381033267,-500.0,0.00026518,2]
[337050352,1725381033277,-500.0,0.00026518,2]
[337050354,1725381033288,-500.0,0.00026518,2]
[337050356,1725381033298,-500.0,0.00026518,2]
[337050358,1725381033308,-500.0,0.00026518,2]
[337050360,1725381033318,-500.0,0.00026518,2]
[337050362,1725381033328,-500.0,0.00026518,2]
[337050364,1725381033339,-560.42833374,0.00026518,2]
[337050366,1725381033348,-537.28944144,0.00026518,2]
[337050368,1725381033357,-500.0,0.00026518,2]
[337050370,1725381033367,-500.0,0.00026518,2]
[337050372,1725381033377,-500.0,0.00026518,2]
[337050374,1725381033388,-500.0,0.00026518,2]
[337050376,1725381033407,-500.0,0.00026518,2]
[337050378,1725381033417,-3000.0,0.0002652,2]
[337050380,1725381033427,-3000.0,0.0002653,2]
[337050382,1725381033438,-3000.0,0.0002654,2]
[337050384,1725381033448,-337380.343769,0.0002654,3]
[337050386,1725381033458,-3000.0,0.0002655,2]
[337050388,1725381033470,-3000.0,0.0002656,2]
[337050390,1725381033480,-3000.0,0.0002657,2]
[337050392,1725381033489,-158.5607633,0.00026573,2]
[337050394,1725381033499,-500.0,0.00026573,2]
[337050396,1725381033508,-500.0,0.00026573,2]
[337050398,1725381033519,-168.58063425,0.00026573,2]
[337050400,1725381033529,-5309.074954,0.0002658,2]
[337050408,1725381033595,-5021.55186649,0.00026803,2]
[337050410,1725381033606,-3216.76843371,0.00026958,2]
[337050412,1725381033615,-134.53333612,0.00026965,2]
[337050568,1725381037900,-8579.42,0.0002499,3]
[337050570,1725381037910,-563.35597954,0.00024999,2]
[337050571,1725381037920,-174.49936044,0.00024999,2]
[337050573,1725381037929,-500.0,0.00024999,2]
[337050575,1725381037939,-241.78673024,0.00024999,2]
[337050577,1725381037948,-500.0,0.00024999,2]
[337050579,1725381037958,-500.0,0.00024999,2]
[337050581,1725381037968,-500.0,0.00024999,2]
[337050583,1725381037977,-500.0,0.00024999,2]
[337050585,1725381037986,-500.0,0.00024999,2]
[337050587,1725381037995,-500.0,0.00024999,2]
[337050589,1725381038005,-500.0,0.00024999,2]
[337050591,1725381038014,-500.0,0.00024999,2]
[337050593,1725381038023,-301.07628605,0.00024999,2]
[337050595,1725381038033,-500.0,0.00024999,2]
[337050597,1725381038042,-500.0,0.00024999,2]
[337050599,1725381038051,-460.9052871,0.00024999,2]
[337050601,1725381038061,-500.0,0.00024999,2]
[337050603,1725381038070,-170.80993794,0.00024999,2]
[337050606,1725381038081,-27036.79425981,0.00025309,15]
[337050608,1725381038093,-151.0,0.0002654,7]
[337050610,1725381038103,-1125.87993629,0.00026965,2]
[337050612,1725381038116,-1015.004247,0.00027,2]
[337050614,1725381038126,-220.0,0.00027,2]
[337050617,1725381038138,-155.02,0.00027072,2]
[337050619,1725381038148,-420.0,0.00027072,2]
[337050621,1725381038159,-5021.55186649,0.00027092,2]
[337050623,1725381038170,-440.66,0.000271,14]
[337050625,1725381038179,-5021.55186649,0.00027146,2]
[337050627,1725381038189,-190.29,0.000272,14]
[337050629,1725381038198,-5021.55186649,0.00027419,2]
[337050631,1725381038208,-197.0,0.00027469,3]
[337050633,1725381038217,-1260.41327241,0.00027472,2]
[337050635,1725381038226,-420.0,0.00027488,2]
[337050637,1725381038235,-93405.84,0.000275,14]
[337050639,1725381038244,-1000.0,0.000275,2]
[337050641,1725381038253,-4584.4154305,0.0002755,2]
[337050643,1725381038263,-151.0,0.00027553,7]
[337050645,1725381038272,-151.0,0.00027553,7]
[337050647,1725381038280,-142559.60779385,0.00027553,3]
[337050649,1725381038292,-47653.33471531,0.00027553,3]
[337050657,1725381038356,-12950.9043291,0.00027553,3]
[337050780,1725381039943,-154.45372973,0.00025673,2]
[337050781,1725381039953,-155.110836,0.00027553,7]
[337050782,1725381039962,-2564.0203255,0.00027553,3]
[337050783,1725381039974,-8738.19440988,0.00027553,3]
[337050831,1725381045930,-284.49203708,0.00024999,2]
[337050832,1725381045941,-72505.7377258,0.00027553,3]
[337050833,1725381045971,-50408.54446956,0.00027553,3]
[337050834,1725381045981,-220.0,0.00027671,2]
[337050835,1725381045991,-5021.55186649,0.00027899,2]
[337050836,1725381046001,-1260.41327241,0.00027979,2]
[337050837,1725381046010,-11778.64011586,0.0002799,2]
[337050838,1725381046020,-354617.51478191,0.00028,14]
[337050840,1725381046106,-804.86498997,0.00028,14]
[337050907,1725382232220,-300.0,0.00024687,2]
[337050908,1725382232231,-300.0,0.00024687,2]
[337050909,1725382232241,-5879.72579142,0.00024688,2]
[337050926,1725382238112,-292.92220413,0.00024688,2]
[337050927,1725382238132,-18727.35200445,0.00024688,2]
[337050928,1725382238144,-251.0,0.00024695,2]
[337050929,1725382238159,-163.381058,0.00024764,2]
[337050930,1725382238173,-183.5027835,0.00024892,2]
[337050931,1725382238185,-250.0,0.00025061,2]
[337050932,1725382238196,-216.782186,0.00025112,2]
[337050933,1725382238208,-250.0,0.0002513,2]
[337050934,1725382238220,-250.0,0.00025199,2]
[337050935,1725382238234,-250.0,0.00025268,2]
[337050936,1725382238248,-6811.33487906,0.00025305,2]
[337050937,1725382238260,-250.0,0.00025336,2]
[337050938,1725382238273,-3000.0,0.00025337,2]
[337050939,1725382238289,-250.0,0.00025405,2]
[337050940,1725382238303,-250.0,0.00025474,2]
[337050941,1725382238315,-250.0,0.00025543,2]
[337050942,1725382238326,-250.0,0.00025611,2]
[337050943,1725382238336,-250.0,0.0002568,2]
[337050944,1725382238348,-250.0,0.00025749,2]
[337050945,1725382238362,-250.0,0.00025817,2]
[337050946,1725382238374,-250.0,0.00025886,2]
[337050947,1725382238386,-250.0,0.00025955,2]
[337050948,1725382238399,-250.0,0.00026024,2]
[337050949,1725382238412,-250.0,0.00026092,2]
[337050950,1725382238425,-164.1,0.00026148,2]
[337050951,1725382238436,-250.0,0.00026161,2]
[337050952,1725382238447,-250.0,0.0002623,2]
[337050953,1725382238458,-250.0,0.00026299,2]
[337050954,1725382238469,-250.0,0.00026367,2]
[337050955,1725382238481,-3000.0,0.000264,2]
[337050956,1725382238493,-3000.0,0.0002641,2]
[337050957,1725382238504,-3000.0,0.0002642,2]
[337050958,1725382238515,-3000.0,0.0002643,2]
[337050959,1725382238527,-3895.579191,0.0002644,2]
[337050960,1725382238540,-150.0,0.00026537,2]
[337050961,1725382238552,-278.90975487,0.0002665,2]
[337050962,1725382238564,-500.0,0.00026733,2]
[337050963,1725382238576,-500.0,0.00026733,2]
[337050964,1725382238587,-420.0,0.00026753,2]
[337050965,1725382238599,-150.0,0.000268,2]
[337050966,1725382238609,-184.0,0.00027,2]
[337050967,1725382238622,-164.1,0.00027041,3]
[337050968,1725382238633,-150.0,0.00027091,2]
[337050969,1725382238645,-5021.55186651,0.00027145,2]
[337050970,1725382238657,-420.0,0.00027156,2]
[337050971,1725382238668,-744.06064683,0.00027281,2]
[337050972,1725382238678,-150.0,0.00027298,2]
[337050973,1725382238691,-150.0,0.00027525,2]
[337050974,1725382238701,-2292.2077155,0.0002755,2]
[337050975,1725382238712,-5021.55186651,0.00027625,2]
[337050976,1725382238723,-184.0,0.00027671,2]
[337050977,1725382238735,-5021.55186651,0.00027723,2]
[337050978,1725382238746,-150.0,0.00027745,2]
[337050979,1725382238757,-164.1,0.00027934,3]
[337050980,1725382238768,-1000.0,0.00028,2]
[337050981,1725382238779,-580.0,0.00028,14]
[337050982,1725382238795,-2292.2077155,0.0002805,2]
[337050983,1725382238811,-252.08265449,0.00028389,2]
[337050984,1725382238822,-252.08265448,0.00028409,2]
[337050985,1725382238833,-252.08265448,0.00028429,2]
[337050986,1725382238844,-252.08265448,0.00028449,2]
[337050987,1725382238855,-252.08265448,0.00028469,2]
[337050988,1725382238868,-5719.61,0.00028469,3]
[337050989,1725382238879,-161.07763022,0.00028473,5]
[337050990,1725382238891,-156.78300178,0.00028473,5]
[337050991,1725382238902,-310.11851247,0.00028473,5]
[337050992,1725382238913,-500.0,0.00028473,2]
[337050993,1725382238926,-499.44067794,0.00028478,2]
[337050994,1725382238937,-500.0,0.00028478,2]
[337050995,1725382238949,-216.24847338,0.00028478,2]
[337050996,1725382238960,-500.0,0.00028478,2]
[337050997,1725382238971,-500.0,0.00028478,2]
[337050998,1725382238983,-500.0,0.00028478,2]
[337050999,1725382238994,-500.0,0.00028478,2]
[337051000,1725382239006,-260.75340024,0.00028478,2]
[337051001,1725382239017,-500.0,0.00028478,2]
[337051002,1725382239027,-500.0,0.00028478,2]
[337051003,1725382239046,-500.0,0.00028478,2]
[337051004,1725382239057,-500.0,0.00028478,2]
[337051005,1725382239067,-500.0,0.00028478,2]
[337051006,1725382239083,-500.0,0.00028478,2]
[337051007,1725382239095,-500.0,0.00028478,2]
[337051008,1725382239105,-500.0,0.00028478,2]
[337051009,1725382239115,-500.0,0.00028478,2]
[337051010,1725382239129,-500.0,0.00028478,2]
[337051011,1725382239142,-500.0,0.00028478,2]
[337051012,1725382239155,-500.0,0.00028478,2]
[337051013,1725382239169,-322.71523081,0.00028478,2]
[337051014,1725382239181,-500.0,0.00028478,2]
[337051015,1725382239193,-500.0,0.00028478,2]
[337051016,1725382239353,-500.0,0.00028478,2]
[337051017,1725382239369,-303894.857417,0.00028479,3]
[337051018,1725382239379,-1000.0,0.00028479,2]
[337051019,1725382239389,-35175.81058428,0.000285,2]
[337051020,1725382239398,-1000.0,0.000285,2]
[337051021,1725382239407,-27062.19979724,0.00028559,15]
[337051022,1725382239417,-46076.51109291,0.00028559,3]
[337051023,1725382239432,-257818.34632409,0.00028559,3]
[337051024,1725382239442,-260.27629339,0.00028573,5]
[337051025,1725382239451,-500.0,0.00028573,5]
[337051026,1725382239460,-500.0,0.00028573,5]
[337051027,1725382239470,-1004.51442048,0.00028578,2]
[337051028,1725382239479,-194299.69,0.000286,14]
[337051029,1725382239489,-152.23,0.000286,14]
[337051030,1725382239499,-150.112235,0.000287,6]
[337051031,1725382239509,-184.0,0.00028767,2]
[337051032,1725382239519,-500.0,0.00028773,5]
[337051033,1725382239528,-501.06952123,0.00028773,5]
[337051034,1725382239541,-530.32803136,0.00028773,5]
[337051035,1725382239551,-500.0,0.00028773,4]
[337051037,1725382239562,-254.88318923,0.00028773,5]
[337051038,1725382239571,-501.35534999,0.00028773,5]
[337051039,1725382239581,-500.0,0.00028773,5]
[337051040,1725382239592,-44482.77740284,0.00028799,2]
[337051041,1725382239605,-161.11827143,0.00028799,10]
[337051042,1725382239614,-160.0,0.00028799,10]
[337051043,1725382239624,-20277.59569486,0.000288,15]
[337051044,1725382239633,-238758.12427221,0.000288,2]
[337051045,1725382239653,-21303.94678671,0.000288,2]
[337051046,1725382239665,-3296.14473106,0.000288,2]
[337051047,1725382239677,-1104.52687694,0.000288,2]
[337051076,1725382240200,-1359.11693957,0.000288,2]
[337051180,1725382243144,-116266.23106799,0.000288,2]
[337051181,1725382243158,-7495.48442707,0.000288,2]
[337051309,1725383432335,-219.110255,0.00024595,2]
[337051311,1725383432345,-322.1238525,0.00024631,2]
[337051545,1725383438432,-253.0425838,0.00024631,2]
[337051547,1725383438444,-159.96,0.00025,2]
[337051549,1725383438454,-81.60217652,0.00025312,2]
[337051553,1725383438489,-1199.93360904,0.00025312,2]
[337051611,1725383440400,-1718.46421444,0.00025312,2]
[337051613,1725383440410,-250.0,0.00025502,2]
[337051615,1725383440419,-250.0,0.00025572,2]
[337051617,1725383440429,-250.0,0.00025642,2]
[337051619,1725383440439,-179.377531,0.00025648,2]
[337051621,1725383440449,-250.0,0.00025711,2]
[337051623,1725383440459,-250.0,0.00025781,2]
[337051625,1725383440469,-280.68017982,0.000258,2]
[337051627,1725383440479,-280.68017981,0.000258,2]
[337051629,1725383440488,-280.68017981,0.000258,2]
[337051631,1725383440499,-300.0,0.00025803,2]
[337051633,1725383440509,-300.0,0.00025803,2]
[337051635,1725383440519,-24900.0,0.00025804,2]
[337051637,1725383440528,-250.0,0.00025851,2]
[337051639,1725383440538,-250.0,0.00025921,2]
[337051641,1725383440550,-250.0,0.00025991,2]
[337051643,1725383440561,-250.0,0.00026061,2]
[337051645,1725383440571,-250.0,0.00026131,2]
[337051647,1725383440580,-250.0,0.00026201,2]
[337051649,1725383440590,-250.0,0.00026271,2]
[337051651,1725383440600,-250.0,0.00026341,2]
[337051654,1725383440610,-150.0,0.000264,2]
[337051657,1725383440634,-250.0,0.00026411,2]
[337051659,1725383440644,-250.0,0.00026481,2]
[337051661,1725383440654,-250.0,0.00026551,2]
[337051663,1725383440664,-250.0,0.00026621,2]
[337051665,1725383440674,-250.0,0.00026691,2]
[337051667,1725383440684,-250.0,0.00026761,2]
[337051669,1725383440695,-250.0,0.00026831,2]
[337051671,1725383440706,-224.0,0.0002793,2]
[337051674,1725383440716,-420.0,0.00028383,2]
[337051676,1725383440727,-465.00792045,0.00028685,2]
[337051678,1725383440737,-1000.0,0.0002869,2]
[337051680,1725383440747,-4766.34,0.0002877,3]
[337051682,1725383440759,-534.73128569,0.00028773,5]
[337051684,1725383440769,-500.0,0.00028773,5]
[337051686,1725383440780,-349.60847456,0.00028779,2]
[337051688,1725383440790,-500.0,0.00028779,2]
[337051690,1725383440799,-382.52738017,0.00028779,2]
[337051693,1725383440810,-500.0,0.00028779,2]
[337051694,1725383440820,-373.67086005,0.00028779,2]
[337051697,1725383440832,-500.0,0.00028779,2]
[337051699,1725383440842,-500.0,0.00028779,2]
[337051701,1725383440852,-500.0,0.00028779,2]
[337051703,1725383440864,-500.0,0.00028779,2]
[337051705,1725383440874,-500.0,0.00028779,2]
[337051707,1725383440883,-500.0,0.00028779,2]
[337051709,1725383440893,-500.0,0.00028779,2]
[337051711,1725383440904,-500.0,0.00028779,2]
[337051713,1725383440914,-500.0,0.00028779,2]
[337051715,1725383440924,-616.80160879,0.00028779,2]
[337051717,1725383440934,-500.0,0.00028779,2]
[337051720,1725383440945,-500.0,0.00028779,2]
[337051722,1725383440955,-500.0,0.00028779,2]
[337051724,1725383440965,-500.0,0.00028779,2]
[337051726,1725383440975,-136363.69503782,0.0002878,3]
[337052469,1725384523141,31894.82060121,0.0002,2]
[337052470,1725384523168,31997.53886089,0.0002,2]
[337052471,1725384524711,12079.79033343,0.000129,2]
[337052482,1725384570153,-271.90709539,0.00020377,2]
[337052515,1725384632478,-6057.350958,0.00020377,2]
[337052520,1725384632547,-1546.53273833,0.00020377,2]
[337052535,1725384638652,-162.28866118,0.00020377,2]
[337052536,1725384638662,-302.30477158,0.00022,2]
[337052537,1725384638671,-302.30477158,0.0002222,2]
[337052538,1725384638681,-302.30477158,0.0002244,2]
[337052540,1725384638690,-125.97178679,0.0002266,2]
[337052570,1725384640577,-176.33298479,0.0002266,2]
[337052572,1725384640588,-74.73829621,0.0002288,2]
[337052618,1725384643485,-227.56647537,0.0002288,2]
[337052619,1725384643496,-453.45715737,0.000231,4]
[337052620,1725384643507,-453.45715737,0.0002332,4]
[337052621,1725384643518,-453.45715737,0.0002354,4]
[337052622,1725384643528,-453.45715737,0.0002376,4]
[337052623,1725384643539,-453.45715737,0.0002398,4]
[337052624,1725384643551,-179.377531,0.00024367,2]
[337052625,1725384643560,-301.907753,0.00024723,2]
[337052626,1725384643571,-411.6435114,0.00024795,2]
[337052627,1725384643581,-441.88302,0.00024898,2]
[337052628,1725384643591,-300.0,0.00024989,2]
[337052629,1725384643602,-526.76774352,0.0002499,3]
[337052630,1725384643615,-311.69803547,0.0002499,3]
[337052631,1725384643627,-3185.90422101,0.0002499,3]
[337052632,1725384643636,-617.76916612,0.00024999,2]
[337052633,1725384643646,-244.72593219,0.00024999,2]
[337052634,1725384643656,-500.0,0.00024999,2]
[337052635,1725384643667,-500.0,0.00024999,2]
[337052636,1725384643677,-500.0,0.00024999,2]
[337052637,1725384643687,-500.0,0.00024999,2]
[337052638,1725384643697,-500.0,0.00024999,2]
[337052639,1725384643708,-500.0,0.00024999,2]
[337052640,1725384643725,-367.72492484,0.00024999,2]
[337052641,1725384643737,-132.27507516,0.00024999,2]
[337052642,1725384643746,-2007.72495484,0.00025,15]
[337052740,1725385832536,-300.0,0.0002179,2]
[337052742,1725385832546,-300.0,0.0002179,2]
[337052744,1725385832557,-1116.8987247,0.00021791,2]
[337052752,1725385838598,-23783.1012753,0.00021791,2]
[337052753,1725385838610,-173.346646,0.00022226,2]
[337052754,1725385838620,-315.626711,0.000224,2]
[337052755,1725385838630,-250.0,0.00022529,2]
[337052756,1725385838642,-250.0,0.00022591,2]
[337052757,1725385838652,-250.0,0.00022653,2]
[337052758,1725385838662,-209.316048,0.00022686,2]
[337052759,1725385838671,-250.0,0.00022715,2]
[337052760,1725385838681,-250.0,0.00022776,2]
[337052761,1725385838690,-250.0,0.00022838,2]
[337052762,1725385838700,-250.0,0.000229,2]
[337052763,1725385838710,-3000.0,0.00022904,2]
[337052764,1725385838719,-250.0,0.00022962,2]
[337052765,1725385838729,-250.0,0.00023024,2]
[337052766,1725385838738,-250.0,0.00023085,2]
[337052767,1725385838749,-250.0,0.00023147,2]
[337052768,1725385838758,-250.0,0.00023209,2]
[337052769,1725385838768,-250.0,0.00023271,2]
[337052770,1725385838777,-250.0,0.00023332,2]
[337052771,1725385838787,-250.0,0.00023394,2]
[337052772,1725385838799,-5248.18468776,0.00023431,2]